fUSD/lending_fUSD_20251228
["ID","MTS","AMOUNT","RATE_DAILY","PERIOD"]
[399962703,1766946648256,-150.0,0.00016677,2]
[399962704,1766946648266,-887.0,0.00016678,2]
[399962705,1766946648275,-162.0,0.0001668,2]
[399962706,1766946648285,-150.0,0.00016687,2]
[399962707,1766946648295,-150.0,0.00016694,2]
[399962708,1766946648304,-150.0,0.00016695,2]
[399962709,1766946648314,-150.0,0.00016697,2]
[399962710,1766946648324,-150.0,0.00016697,2]
[399962711,1766946648342,-98030.31984018,0.000167,2]
[399962712,1766946648358,-154.72,0.00016703,2]
[399962713,1766946648368,-150.0,0.00016703,2]
[399962714,1766946648379,-150.0,0.00016703,2]
[399962715,1766946648390,-150.0,0.0001671,2]
[399962716,1766946648399,-150.0,0.00016716,2]
[399962717,1766946648409,-150.0,0.00016718,2]
[399962718,1766946648419,-150.0,0.00016719,2]
[399962719,1766946648429,-150.0,0.00016721,2]
[399962720,1766946648440,-150.0,0.00016733,2]
[399962721,1766946648450,-150.0,0.00016735,2]
[399962722,1766946648459,-150.0,0.00016744,2]
[399962723,1766946648470,-150.0,0.00016747,2]
[399962724,1766946648479,-150.0,0.00016749,2]
[399962725,1766946648489,-150.0,0.00016755,2]
[399962726,1766946648498,-150.0,0.0001676,2]
[399962727,1766946648509,-150.0,0.00016763,2]
[399962728,1766946648518,-1500.0,0.00016764,2]
[399962729,1766946648528,-150.0,0.00016768,2]
[399962730,1766946648537,-150.0,0.00016769,2]
[399962731,1766946648548,-250.0,0.00016772,2]
[399962732,1766946648566,-150.0,0.00016774,2]
[399962733,1766946648586,-150.0,0.00016774,2]
[399962734,1766946648599,-150.0,0.00016786,2]
[399962735,1766946648609,-150.0,0.00016789,2]
[399962736,1766946648619,-1027.0,0.00016791,2]
[399962737,1766946648628,-150.0,0.00016792,2]
[399962738,1766946648638,-150.0,0.00016793,2]
[399962739,1766946648648,-1000.0,0.000168,2]
[399962740,1766946648658,-150.0,0.00016801,2]
[399962741,1766946648669,-150.0,0.00016806,2]
[399962742,1766946648678,-150.0,0.00016807,2]
[399962743,1766946648688,-150.0,0.00016813,2]
[399962744,1766946648698,-150.0,0.00016816,2]
[399962745,1766946648707,-150.0,0.00016816,2]
[399962746,1766946648720,-150.0,0.00016816,2]
[399962747,1766946648730,-150.0,0.00016827,2]
[399962748,1766946648739,-150.0,0.00016828,2]
[399962749,1766946648750,-150.0,0.00016832,2]
[399962750,1766946648758,-150.0,0.00016841,2]
[399962751,1766946648767,-150.0,0.00016842,2]
[399962752,1766946648776,-150.0,0.00016845,2]
[399962753,1766946648790,-150.0,0.00016851,2]
[399962754,1766946648800,-150.0,0.00016852,2]
[399962755,1766946648810,-150.0,0.00016854,2]
[399962756,1766946648819,-150.0,0.00016865,2]
[399962757,1766946648829,-150.0,0.00016868,2]
[399962758,1766946648838,-150.0,0.0001687,2]
[399962759,1766946648847,-150.0,0.00016873,2]
[399962760,1766946648857,-150.0,0.00016878,2]
[399962761,1766946648865,-150.0,0.0001688,2]
[399962762,1766946648873,-150.0,0.00016886,2]
[399962763,1766946648882,-150.0,0.00016889,2]
[399962764,1766946648892,-150.0,0.0001689,2]
[399962765,1766946648902,-1027.0,0.00016895,2]
[399962766,1766946648912,-150.0,0.00016897,2]
[399962767,1766946648922,-165.82884527,0.000169,2]
[399962768,1766946648931,-1000.0,0.000169,2]
[399962769,1766946648941,-9456.11098514,0.000169,2]
[399962770,1766946648950,-342.81583742,0.000169,2]
[399962771,1766946648959,-322.03359741,0.000169,2]
[399962772,1766946648969,-352.50332532,0.000169,2]
[399962773,1766946648978,-526.62278413,0.000169,2]
[399962774,1766946648988,-17275.20133603,0.000169,2]
[399962775,1766946648998,-3744.0,0.000169,2]
[399962776,1766946649007,-150.0,0.00016907,2]
[399962777,1766946649016,-150.0,0.00016907,2]
[399962778,1766946649027,-150.0,0.00016909,2]
[399962779,1766946649038,-150.0,0.00016914,2]
[399962780,1766946649048,-150.0,0.00016914,2]
[399962781,1766946649059,-150.0,0.00016928,2]
[399962782,1766946649069,-150.0,0.0001693,2]
[399962783,1766946649079,-953.91830604,0.00016933,2]
[399962784,1766946649090,-150.0,0.00016933,2]
[399962785,1766946649100,-150.0,0.00016938,2]
[399962786,1766946649110,-150.0,0.00016942,2]
[399962787,1766946649120,-150.0,0.00016947,2]
[399962788,1766946649131,-150.0,0.00016948,2]
[399962789,1766946649140,-150.0,0.0001695,2]
[399962790,1766946649152,-150.0,0.0001696,2]
[399962791,1766946649162,-150.0,0.00016962,2]
[399962792,1766946649176,-150.0,0.00016967,2]
[399962793,1766946649186,-150.0,0.00016973,2]
[399962794,1766946649195,-150.0,0.00016973,2]
[399962795,1766946649205,-31771.6,0.00016986,2]
[399962796,1766946649216,-193.20504799,0.00016986,2]
[399962797,1766946649228,-261.52919059,0.00016986,2]
[399962798,1766946649238,-291.19227716,0.00016986,2]
[399962799,1766946649248,-257.38593742,0.00016986,2]
[399962800,1766946649258,-298.68946488,0.00016986,2]
[399962801,1766946649270,-288.29142727,0.00016986,2]
[399962802,1766946649281,-159.10391865,0.00016986,2]
[399962803,1766946649290,-191.18737209,0.00016986,2]
[399962804,1766946649300,-266.31997745,0.00016986,2]
[399962805,1766946649311,-157.03567619,0.00016986,2]
[399962806,1766946649322,-172.24524013,0.00016986,2]
[399962807,1766946649333,-156.10987043,0.00016986,2]
[399962808,1766946649344,-204.47837642,0.00016986,2]
[399962809,1766946649355,-1094.43955386,0.00016999,5]
[399962810,1766946649366,-13388.5629143,0.00016999,2]
[399962811,1766946649376,-1109.17083251,0.00016999,5]
[399962812,1766946649386,-1109.1708325,0.00016999,5]
[399962813,1766946649395,-300.0,0.00016999,2]
[399962814,1766946649406,-300.0,0.00016999,2]
[399962815,1766946649417,-300.0,0.00016999,2]
[399962816,1766946649426,-666.0,0.00016999,2]
[399962817,1766946649436,-646.48024776,0.00016999,2]
[399962818,1766946649445,-300.0,0.00016999,2]
[399962819,1766946649456,-1042050.17840864,0.00017,2]
[399962820,1766946649466,-450141.53711576,0.00017,2]
[399962821,1766946649778,413.00236916,0.00030136,120]
[399962822,1766946649917,-235.22,0.00014856,2]
[399962823,1766946649929,-42.29971807,0.00016626,2]
[399962824,1766946649961,-235.22,0.00015643,2]
[399962825,1766946649971,-764.78,0.00016626,2]
[399962826,1766946650022,425.72351277,0.00030136,120]
[399962827,1766946650051,-235.22,0.00015829,2]
[399962828,1766946650060,-156.81,0.00016048,2]
[399962829,1766946650069,-156.81,0.0001608,2]
[399962830,1766946650079,-90.64,0.00016626,2]
[399962831,1766946654604,408.02179857,0.00030136,120]
[399962832,1766946657593,406.85544551,0.00030136,120]
[399962833,1766946669524,402.46130465,0.00030136,120]
[399962834,1766946679545,500.0,0.00030136,120]
[399962835,1766946679777,500.0,0.00030136,120]
[399962836,1766946680010,500.0,0.00030136,120]
[399962837,1766946680246,589.33536996,0.00030136,120]
[399962838,1766946686661,500.0,0.00030136,120]
[399962839,1766946686905,312.40949385,0.00030136,120]
[399962840,1766946687697,1629.686954,0.0003,120]
[399962841,1766946688882,305.66177686,0.00030136,120]
[399962842,1766946698815,404.53468408,0.00030136,120]
[399962843,1766946700256,493.95187548,0.00030136,120]
[399962844,1766946702794,406.4063914,0.00030136,120]
[399962845,1766946704536,406.12399864,0.00030136,120]
[399962846,1766946705537,410.03515767,0.00030136,120]
[399962847,1766946706339,255.9266759,0.00030136,120]
[399962848,1766946728229,600.0,0.00030136,120]
[399962849,1766946737017,600.0,0.00030136,120]
[399962850,1766946746775,600.0,0.00030136,120]
[399962851,1766946751140,500.0,0.00030136,120]
[399962852,1766946754047,500.0,0.00030136,120]
[399962853,1766946754289,309.15374584,0.00030136,120]
[399962854,1766946755758,600.0,0.00030136,120]
[399962855,1766946756093,406.82253872,0.00030136,120]
[399962856,1766946758509,407.95414934,0.00030136,120]
[399962857,1766946762228,614.35603128,0.00030136,120]
[399962858,1766946764327,732.44,0.00030136,120]
[399962867,1766946782466,369.79026144,0.00030136,120]
[399962868,1766946796587,500.0,0.00030136,120]
[399962869,1766946796824,295.45079425,0.00030136,120]
[399962870,1766946799427,500.0,0.00030136,120]
[399962871,1766946799675,500.0,0.00030136,120]
[399962872,1766946799907,500.0,0.00030136,120]
[399962873,1766946800170,500.0,0.00030136,120]
[399962874,1766946800423,254.77271816,0.00030136,120]
[399962875,1766946808253,4165.47374371,0.0001,2]
[399962876,1766946810658,409.05982068,0.00030136,120]
[399962877,1766946825763,190.15585915,0.00030136,120]
[399962878,1766946829502,412.41114472,0.00030136,120]
[399962879,1766946840420,1898.0,0.00030136,120]
[399962880,1766946840652,1898.0,0.00030136,120]
[399962881,1766946840889,1898.0,0.00030136,120]
[399962882,1766946841122,1898.0,0.00030136,120]
[399962883,1766946841358,1898.0,0.00030136,120]
[399962884,1766946841612,1898.0,0.00030136,120]
[399962885,1766946841853,1898.0,0.00030136,120]
[399962886,1766946842200,1898.0,0.00030136,120]
[399962887,1766946842429,1898.0,0.00030136,120]
[399962888,1766946842660,1898.0,0.00030136,120]
[399962889,1766946842905,1898.0,0.00030136,120]
[399962890,1766946843151,1898.0,0.00030136,120]
[399962891,1766946843385,1898.0,0.00030136,120]
[399962892,1766946843616,1898.0,0.00030136,120]
[399962893,1766946843840,1898.0,0.00030136,120]
[399962894,1766946844079,1898.0,0.00030136,120]
[399962895,1766946844327,1898.0,0.00030136,120]
[399962896,1766946844567,1898.0,0.00030136,120]
[399962897,1766946844807,1898.0,0.00030136,120]
[399962898,1766946845032,1898.0,0.00030136,120]
[399962899,1766946845289,1898.0,0.00030136,120]
[399962900,1766946845530,1898.0,0.00030136,120]
[399962901,1766946845773,1898.0,0.00030136,120]
[399962902,1766946846134,1898.23099642,0.00030136,120]
[399962903,1766946866640,-171.40791871,0.00013619,2]
[399962904,1766946866665,-257.1118781,0.00013619,2]
[399962905,1766946866688,-250.0,0.0001362,2]
[399962906,1766946866711,-25986.4304,0.0001362,2]
[399962907,1766946866744,-63585.04980319,0.0001362,2]
[399962912,1766946938466,2057.779,0.00013348,2]
[399962913,1766946938775,181.608,0.00013348,2]
[399962925,1766947202131,178.92659946,0.0001342,2]
[399962933,1766947382698,153.03,6.787e-05,2]
[399962934,1766947382902,153.03,7.211e-05,2]
[399962935,1766947383117,153.03,7.635e-05,2]
[399962936,1766947383327,153.03,8.059e-05,2]
[399962937,1766947383540,153.03,8.483e-05,2]
[399962938,1766947383748,153.03,8.908e-05,2]
[399962939,1766947383942,153.03,9.332e-05,2]
[399962940,1766947384135,153.03,9.756e-05,2]
[399962941,1766947384336,153.03,0.0001018,2]
[399962942,1766947384619,153.03,0.00010604,2]
[399962943,1766947384759,153.03,0.00011028,2]
[399962944,1766947384956,153.03,0.00011453,2]
[399962945,1766947385156,153.03,0.00011877,2]
[399962946,1766947385398,153.03,0.00012301,2]
[399962947,1766947385618,153.03,0.00012725,2]
[399962948,1766947385819,153.03,0.00013149,2]
[399962950,1766947538280,167.7,0.00011175,2]
[399962951,1766947720522,200.0,0.00012836,2]
[399962952,1766947804376,271.63,0.00026986,120]
[399962959,1766947832037,-300.0,0.00013509,2]
[399962960,1766947832047,-90.37271931,0.00013509,2]
[399962961,1766947832059,-1109.62728069,0.00013509,2]
[399962962,1766947832068,-300.0,0.0001351,2]
[399962963,1766947832078,-54516.66309518,0.0001351,2]
[399962964,1766947832088,-150.0,0.00013518,2]
[399962965,1766947832098,-4102.637,0.00013519,2]
[399962966,1766947832107,-25952.2054,0.00013519,2]
[399962967,1766947832119,-2500.0,0.00013519,2]
[399962968,1766947832128,-369.47167072,0.00013519,2]
[399962969,1766947832137,-15620.19646478,0.0001352,2]
[399962970,1766947832147,-163.34254338,0.0001352,2]
[399962971,1766947832156,-153.03,0.00013573,2]
[399962972,1766947832166,-170.00988059,0.00013575,2]
[399962973,1766947832175,-350.67,0.00013602,2]
[399962974,1766947832185,-500.0,0.00013612,2]
[399962975,1766947832195,-200.0,0.00013612,2]
[399962976,1766947832204,-200.0,0.00013612,2]
[399962977,1766947832213,-215.0738,0.00013612,2]
[399962978,1766947832224,-1299.39,0.00013618,2]
[399962979,1766947832237,-500.0,0.00013618,2]
[399962980,1766947832247,-500.0,0.00013618,2]
[399962981,1766947832256,-500.0,0.00013618,2]
[399962982,1766947832266,-500.0,0.00013618,2]
[399962983,1766947832275,-500.0,0.00013618,2]
[399962984,1766947832285,-630.36552173,0.00013618,2]
[399962985,1766947832295,-500.0,0.00013618,2]
[399962986,1766947832304,-500.0,0.00013618,2]
[399962987,1766947832313,-500.0,0.00013618,2]
[399962988,1766947832323,-500.0,0.00013618,2]
[399962989,1766947832333,-87551.51029761,0.00013619,2]
[399962990,1766947832345,-49921.85080211,0.00013619,2]
[399962991,1766947832356,-18231.78443257,0.00013619,2]
[399962992,1766947832367,-1111.79715654,0.00013619,2]
[399962993,1766947832382,-2900.00000002,0.00013619,2]
[399962994,1766947832393,-15990.6685643,0.00013619,2]
[399962995,1766947832404,-1554.14613501,0.00013619,2]
[399962996,1766947832416,-950.26546194,0.00013619,2]
[399962998,1766947838242,-343.08854616,0.00013619,2]
[399962999,1766947838297,-395.11769797,0.00013619,2]
[399963071,1766947840188,-396.66388166,0.00013619,2]
[399963072,1766947840242,-8102.83272952,0.00013619,2]
[399963073,1766947840254,-439.14,0.00013619,2]
[399963074,1766947840266,-386.3526285,0.00013619,2]
[399963075,1766947840278,-1807.69,0.00013619,2]
[399963076,1766947840403,-36647.6590254,0.00013619,2]
[399963077,1766947840412,-29918.8137,0.0001362,2]
[399963078,1766947840422,-500.0,0.00013698,2]
[399963079,1766947840431,-500.0,0.00013698,2]
[399963080,1766947840441,-546.9592126,0.00013698,2]
[399963081,1766947840452,-500.0,0.00013698,2]
[399963082,1766947840462,-500.0,0.00013698,2]
[399963083,1766947840473,-500.0,0.00013698,2]
[399963084,1766947840484,-500.0,0.00013698,2]
[399963085,1766947840493,-500.0,0.00013698,2]
[399963086,1766947840503,-500.0,0.00013698,2]
[399963087,1766947840512,-500.0,0.00013698,2]
[399963088,1766947840522,-190.55361039,0.00013698,2]
[399963089,1766947840531,-609.81,0.00013699,2]
[399963090,1766947840540,-500.0,0.00013719,2]
[399963091,1766947840549,-500.0,0.00013719,2]
[399963092,1766947840560,-500.0,0.00013719,2]
[399963093,1766947840571,-500.0,0.00013719,2]
[399963094,1766947840582,-500.0,0.00013719,2]
[399963095,1766947840593,-50363.5172991,0.0001372,2]
[399963096,1766947840603,-1000.0,0.00013798,2]
[399963097,1766947840612,-1000.0,0.00013821,2]
[399963098,1766947840621,-1299.39,0.00013892,2]
[399963099,1766947840631,-15620.19646476,0.00013896,2]
[399963100,1766947840641,-2228.66,0.00013909,2]
[399963101,1766947840650,-150.0,0.0001394,2]
[399963102,1766947840660,-500.0,0.00013989,2]
[399963103,1766947840670,-195.54717431,0.00013993,2]
[399963104,1766947840679,-504.00666552,0.0001416,2]
[399963105,1766947840688,-200.0,0.0001416,2]
[399963106,1766947840697,-201.23401647,0.0001416,2]
[399963107,1766947840707,-1299.39,0.00014166,2]
[399963108,1766947840716,-163.34254336,0.00014196,2]
[399963109,1766947840726,-15620.19646476,0.00014271,2]
[399963110,1766947840736,-150.0,0.00014299,2]
[399963111,1766947840746,-150.0,0.00014299,2]
[399963112,1766947840756,-150.0,0.00014326,2]
[399963113,1766947840765,-250.0,0.00014354,2]
[399963114,1766947840775,-1299.39,0.0001444,2]
[399963115,1766947840953,-500.0,0.00014573,2]
[399963116,1766947841014,-169.46577369,0.00014573,2]
[399963117,1766947841024,-224.28186878,0.00014573,2]
[399963118,1766947841034,-500.0,0.00014573,2]
[399963119,1766947841045,-500.0,0.00014573,2]
[399963120,1766947841055,-500.85459949,0.00014573,2]
[399963121,1766947841065,-500.0,0.00014573,2]
[399963122,1766947841075,-165.96450787,0.00014573,2]
[399963123,1766947841085,-500.0,0.00014573,2]
[399963124,1766947841094,-500.0,0.00014573,2]
[399963125,1766947841104,-254.67001786,0.00014573,2]
[399963126,1766947841114,-500.0,0.00014573,2]
[399963127,1766947841124,-500.0,0.00014573,2]
[399963128,1766947841134,-235.96212979,0.00014573,2]
[399963129,1766947841145,-500.0,0.00014573,2]
[399963130,1766947841155,-154.80154307,0.00014598,2]
[399963131,1766947841165,-150.0,0.00014598,2]
[399963132,1766947841175,-150.0,0.00014625,2]
[399963133,1766947841184,-255.0,0.00014626,2]
[399963134,1766947841194,-15620.19646476,0.00014647,2]
[399963135,1766947841203,-201.65928417,0.00014653,2]
[399963136,1766947841215,-150.0,0.00014707,2]
[399963137,1766947841225,-201.8815823,0.00014708,2]
[399963138,1766947841234,-1299.39,0.00014714,2]
[399963139,1766947841244,-150.0,0.00014734,2]
[399963140,1766947841253,-150.0,0.00014762,2]
[399963141,1766947841265,-150.0,0.00014789,2]
[399963142,1766947841274,-211.20663021,0.00014817,2]
[399963143,1766947841283,-195.0,0.0001486,2]
[399963144,1766947841293,-333.68168469,0.0001486,2]
[399963145,1766947841304,-300.0,0.0001486,2]
[399963146,1766947841313,-195.0,0.0001486,2]
[399963147,1766947841324,-300.0,0.0001486,2]
[399963148,1766947841334,-600.0,0.0001486,2]
[399963149,1766947841344,-600.0,0.0001486,2]
[399963150,1766947841354,-251.42741313,0.0001486,2]
[399963151,1766947841364,-1680.0,0.0001486,2]
[399963152,1766947841374,-300.0,0.00014871,2]
[399963153,1766947841383,-600.0,0.00014871,2]
[399963154,1766947841393,-198.31759794,0.00014871,2]
[399963155,1766947841402,-195.0,0.00014871,2]
[399963156,1766947841412,-2500.0,0.00014871,2]
[399963157,1766947841421,-250.0,0.00014871,2]
[399963158,1766947841431,-250.0,0.00014871,2]
[399963159,1766947841441,-163.34254336,0.00014872,2]
[399963160,1766947841450,-1299.39,0.00014988,2]
[399963161,1766947841460,-15620.19646476,0.00015022,2]
[399963162,1766947841469,-1000.0,0.00015121,2]
[399963163,1766947841479,-1000.0,0.00015121,2]
[399963164,1766947841490,-1000.0,0.00015121,2]
[399963165,1766947841500,-1000.0,0.00015121,2]
[399963166,1766947841511,-712.239044,0.00015121,2]
[399963167,1766947841520,-1000.0,0.00015121,2]
[399963168,1766947841530,-1000.0,0.00015121,2]
[399963169,1766947841540,-1000.0,0.00015121,2]
[399963170,1766947841550,-232.09,0.0001514,2]
[399963171,1766947841559,-1299.39,0.00015262,2]
[399963172,1766947841568,-150.0,0.00015288,2]
[399963173,1766947841578,-150.0,0.00015288,2]
[399963174,1766947841587,-150.0,0.00015288,2]
[399963175,1766947841596,-150.0,0.00015288,2]
[399963176,1766947841606,-150.0,0.00015288,2]
[399963177,1766947841615,-150.0,0.00015288,2]
[399963178,1766947841626,-150.0,0.00015288,2]
[399963179,1766947841637,-298.69511274,0.00015288,2]
[399963180,1766947841646,-150.0,0.00015288,2]
[399963181,1766947841656,-150.0,0.00015288,2]
[399963182,1766947841665,-150.0,0.00015288,2]
[399963183,1766947841676,-150.0,0.00015288,2]
[399963184,1766947841686,-150.0,0.00015288,2]
[399963185,1766947841696,-150.0,0.00015288,2]
[399963186,1766947841708,-150.0,0.00015288,2]
[399963187,1766947841718,-150.0,0.00015307,2]
[399963188,1766947841727,-150.0,0.00015312,2]
[399963189,1766947841737,-150.0,0.00015314,2]
[399963190,1766947841746,-150.0,0.00015324,2]
[399963191,1766947841756,-150.0,0.00015326,2]
[399963192,1766947841766,-150.0,0.00015327,2]
[399963193,1766947841775,-150.0,0.00015332,2]
[399963194,1766947841785,-150.0,0.00015336,2]
[399963195,1766947841794,-150.0,0.00015341,2]
[399963196,1766947841804,-150.0,0.00015344,2]
[399963197,1766947841813,-150.0,0.00015346,2]
[399963198,1766947841823,-150.0,0.0001536,2]
[399963199,1766947841832,-150.0,0.0001536,2]
[399963200,1766947841842,-150.0,0.00015365,2]
[399963201,1766947841851,-150.0,0.00015367,2]
[399963202,1766947841861,-150.0,0.00015367,2]
[399963203,1766947841870,-150.0,0.00015377,2]
[399963204,1766947841879,-150.0,0.00015384,2]
[399963205,1766947841888,-150.0,0.00015385,2]
[399963206,1766947841898,-151.16,0.00015386,2]
[399963207,1766947841907,-151.0,0.00015386,2]
[399963208,1766947841917,-151.0,0.00015386,2]
[399963209,1766947841927,-150.0,0.00015388,2]
[399963210,1766947841936,-150.0,0.00015394,2]
[399963211,1766947841947,-151.0,0.00015394,2]
[399963212,1766947841956,-150.0,0.00015396,2]
[399963213,1766947841966,-15620.19646476,0.00015398,2]
[399963214,1766947841977,-169.84004055,0.000154,2]
[399963215,1766947841987,-169.84004055,0.000154,2]
[399963216,1766947841998,-150.0,0.00015401,2]
[399963217,1766947842008,-151.0,0.00015402,2]
[399963218,1766947842019,-151.0,0.00015402,2]
[399963219,1766947842028,-150.0,0.00015403,2]
[399963220,1766947842038,-150.0,0.00015406,2]
[399963221,1766947842048,-150.0,0.00015409,2]
[399963222,1766947842057,-151.0,0.00015414,2]
[399963223,1766947842067,-150.0,0.00015418,2]
[399963224,1766947842076,-150.0,0.0001542,2]
[399963225,1766947842086,-150.0,0.00015422,2]
[399963226,1766947842095,-150.0,0.00015423,2]
[399963227,1766947842104,-150.0,0.00015429,2]
[399963228,1766947842113,-150.0,0.00015432,2]
[399963229,1766947842123,-150.0,0.00015433,2]
[399963230,1766947842132,-150.0,0.00015442,2]
[399963231,1766947842144,-150.0,0.00015446,2]
[399963232,1766947842153,-150.0,0.00015447,2]
[399963233,1766947842163,-150.0,0.00015458,2]
[399963234,1766947842172,-150.0,0.00015458,2]
[399963235,1766947842181,-150.0,0.00015458,2]
[399963236,1766947842190,-150.0,0.00015461,2]
[399963237,1766947842200,-150.0,0.00015466,2]
[399963238,1766947842210,-150.0,0.00015468,2]
[399963239,1766947842219,-150.0,0.00015473,2]
[399963240,1766947842229,-150.0,0.00015481,2]
[399963241,1766947842239,-150.0,0.00015482,2]
[399963242,1766947842248,-150.0,0.00015485,2]
[399963243,1766947842258,-150.0,0.00015488,2]
[399963244,1766947842267,-150.0,0.000155,2]
[399963245,1766947842278,-150.0,0.000155,2]
[399963246,1766947842287,-150.0,0.00015505,2]
[399963247,1766947842297,-150.0,0.00015506,2]
[399963248,1766947842307,-150.0,0.00015511,2]
[399963249,1766947842317,-150.0,0.00015514,2]
[399963250,1766947842327,-150.0,0.00015519,2]
[399963251,1766947842337,-1000.0,0.00015522,2]
[399963252,1766947842346,-150.0,0.00015525,2]
[399963253,1766947842356,-150.0,0.00015527,2]
[399963254,1766947842366,-151.0,0.00015528,2]
[399963255,1766947842375,-151.0,0.00015528,2]
[399963256,1766947842384,-150.0,0.0001553,2]
[399963257,1766947842393,-1299.39,0.00015536,2]
[399963258,1766947842402,-150.0,0.00015539,2]
[399963259,1766947842411,-150.0,0.00015541,2]
[399963260,1766947842420,-163.34254336,0.00015548,2]
[399963261,1766947842430,-150.0,0.00015549,2]
[399963262,1766947842439,-150.0,0.00015553,2]
[399963263,1766947842448,-150.0,0.00015555,2]
[399963264,1766947842458,-150.0,0.00015556,2]
[399963265,1766947842467,-150.0,0.00015558,2]
[399963266,1766947842476,-150.0,0.00015564,2]
[399963267,1766947842486,-150.0,0.00015571,2]
[399963268,1766947842495,-150.0,0.00015571,2]
[399963269,1766947842504,-150.0,0.00015577,2]
[399963270,1766947842513,-150.0,0.00015577,2]
[399963271,1766947842523,-150.0,0.00015579,2]
[399963272,1766947842532,-284.76184806,0.0001558,2]
[399963273,1766947842542,-500.0,0.0001558,2]
[399963274,1766947842552,-500.0,0.0001558,2]
[399963275,1766947842563,-500.0,0.0001558,2]
[399963276,1766947842573,-500.0,0.0001558,2]
[399963277,1766947842583,-500.0,0.0001558,2]
[399963278,1766947842593,-500.0,0.0001558,2]
[399963279,1766947842602,-500.0,0.0001558,2]
[399963280,1766947842611,-500.0,0.0001558,2]
[399963281,1766947842620,-500.0,0.0001558,2]
[399963282,1766947842628,-500.0,0.0001558,2]
[399963283,1766947842638,-500.0,0.0001558,2]
[399963284,1766947842648,-200.0,0.0001558,2]
[399963285,1766947842658,-500.0,0.0001558,2]
[399963286,1766947842667,-207.4,0.0001558,2]
[399963287,1766947842677,-259.6625457,0.0001558,2]
[399963288,1766947842686,-215.0738,0.0001558,2]
[399963289,1766947842696,-223.0315306,0.0001558,2]
[399963290,1766947842705,-500.0,0.0001558,2]
[399963291,1766947842715,-500.0,0.0001558,2]
[399963292,1766947842724,-231.28369723,0.0001558,2]
[399963293,1766947842735,-239.84119403,0.0001558,2]
[399963294,1766947842744,-500.0,0.0001558,2]
[399963295,1766947842753,-282.13607366,0.0001558,2]
[399963296,1766947842762,-248.71531821,0.0001558,2]
[399963297,1766947842772,-257.91778498,0.0001558,2]
[399963298,1766947842782,-405.15229211,0.0001558,2]
[399963299,1766947842792,-250.0,0.0001558,2]
[399963300,1766947842802,-250.0,0.0001558,2]
[399963301,1766947842811,-250.0,0.0001558,2]
[399963302,1766947842821,-250.0,0.0001558,2]
[399963303,1766947842831,-250.0,0.0001558,2]
[399963304,1766947842840,-250.0,0.0001558,2]
[399963305,1766947842849,-322.6107,0.0001558,2]
[399963306,1766947842860,-250.0,0.0001558,2]
[399963307,1766947842869,-250.0,0.0001558,2]
[399963308,1766947842879,-250.0,0.0001558,2]
[399963309,1766947842889,-250.0,0.0001558,2]
[399963310,1766947842898,-500.0,0.0001558,2]
[399963311,1766947842908,-250.0,0.0001558,2]